bitfinex-derivatives/quotes_SOLF0:USTF0_20250911
["timestamp","ask_amount","ask_price","bid_price","bid_amount"]
[1757598148948,21.66699863,228.51,228.36,6.94]
[1757598149152,8.50699863,228.45,228.31,6.77]
[1757598149349,3.14591713,228.44,228.31,6.77]
[1757598149544,3.14591713,228.43,228.31,6.77]
[1757598149853,3.14591713,228.42,228.31,6.77]
[1757598150152,8.50699863,228.45,228.31,6.77]
[1757598150355,3.14330479,228.44,228.31,6.77]
[1757598150652,3.14330479,228.43,228.31,6.77]
[1757598150854,3.14095168,228.42,228.31,6.77]
[1757598151055,8.50699863,228.45,228.31,6.77]
[1757598151254,3.14095168,228.44,228.31,6.77]
[1757598151550,8.50699863,228.39,228.14,6.77]
[1757598151750,3.14095168,228.38,228.14,6.77]
[1757598151946,3.14095168,228.37,228.14,6.77]
[1757598152150,3.14095168,228.36,228.16,6.77]
[1757598152454,3.14095168,228.35,228.16,6.77]
[1757598152752,131.98,228.37,228.16,6.77]
[1757598152953,3.1360117,228.36,228.16,6.77]
[1757598153152,3.1360117,228.35,228.16,6.77]
[1757598153354,131.88,228.36,228.16,6.77]
[1757598153554,3.13247593,228.35,228.16,6.77]
[1757598153755,131.88,228.36,228.16,6.77]
[1757598153955,3.13247593,228.35,228.16,6.77]
[1757598154155,131.76,228.36,228.16,6.77]
[1757598154456,3.13206727,228.35,228.16,6.77]
[1757598154658,8.50699863,228.33,228.16,6.77]
[1757598155656,8.50699863,228.33,228.16,68.77]
[1757598155852,3.12705444,228.32,228.16,68.77]
[1757598156047,3.12705444,228.31,228.16,68.77]
[1757598156355,3.12705444,228.3,228.16,6.77]
[1757598156546,29.76,228.29,228.11,6.77]
[1757598156752,41.88,228.29,228.11,6.77]
[1757598156949,8.50699863,228.33,228.11,6.77]
[1757598157155,3.12372605,228.32,228.11,6.77]
[1757598157354,8.50699863,228.33,228.11,6.77]
[1757598157554,3.12078186,228.32,228.11,6.77]
[1757598157853,8.50699863,228.33,228.11,6.77]
[1757598158148,3.12078186,228.32,228.11,6.77]
[1757598158351,3.12078186,228.31,228.11,6.77]
[1757598158550,3.11871037,228.3,228.11,6.77]
[1757598158756,17.54,228.31,228.11,6.77]
[1757598158955,3.11879981,228.3,228.11,6.77]
[1757598159154,26.56699863,228.33,228.11,6.77]
[1757598159352,3.11879922,228.32,228.13,6.77]
[1757598159560,3.11626072,228.31,228.13,6.77]
[1757598159865,22.16,228.34,228.13,6.77]
[1757598160062,8.50699863,228.3,228.13,6.77]
[1757598160663,3.11470155,228.29,228.13,6.77]
[1757598160864,8.50699863,228.3,228.13,6.77]
[1757598161056,3.11479073,228.29,228.13,6.77]
[1757598161263,46.33491943,228.28,228.13,6.77]
[1757598161461,3.11491943,228.27,228.13,6.77]
[1757598161765,3.11491943,228.26,228.03,294.1]
[1757598161970,66.0,228.29,228.04,6.77]
[1757598161971,8.50699863,228.24,228.04,6.77]
[1757598162765,8.50699863,228.24,228.06,6.77]
[1757598163272,3.10865543,228.23,228.06,6.77]
[1757598163467,8.50699863,228.24,228.06,6.77]
[1757598163672,3.10865612,228.23,228.06,6.77]
[1757598163873,8.50699863,228.24,228.06,6.77]
[1757598164174,3.10865612,228.23,228.06,6.77]
[1757598164375,8.50699863,228.24,228.06,6.77]
[1757598164672,3.10612051,228.23,228.06,6.77]
[1757598164868,8.50699863,228.24,228.06,6.77]
[1757598165774,10.32,228.29,228.06,6.77]
[1757598165968,3.10397412,228.28,228.06,6.77]
[1757598166173,3.1041518,228.27,228.06,6.77]
[1757598166371,10.32,228.29,228.06,6.77]
[1757598166572,16.26432347,228.28,228.06,6.77]
[1757598166773,13.16,228.26,228.06,6.77]
[1757598166968,10.32,228.29,228.06,6.77]
[1757598166969,16.26432347,228.25,228.06,6.77]
[1757598167168,3.10432347,228.24,228.06,6.77]
[1757598168572,11.6113221,228.24,228.06,6.77]
[1757598168876,3.10432347,228.23,228.06,6.77]
[1757598169079,3.10432347,228.22,228.06,6.77]
[1757598169273,3.10432347,228.21,228.06,6.77]
[1757598169476,21.66699863,228.24,228.06,6.77]
[1757598169672,3.10387884,228.23,228.06,6.77]
[1757598169980,3.10387884,228.22,228.06,6.77]
[1757598170182,3.10387884,228.21,228.06,6.77]
[1757598170373,21.66699863,228.24,228.06,6.77]
[1757598170568,3.09575266,228.23,228.06,6.77]
[1757598170778,3.09575266,228.22,228.06,6.77]
[1757598170975,151.28699863,228.24,228.06,6.77]
[1757598171175,3.09575266,228.23,228.06,6.77]
[1757598171373,3.09575266,228.22,228.06,6.77]
[1757598171679,8.50699863,228.24,228.06,6.77]
[1757598171874,3.09570737,228.23,228.06,6.77]
[1757598172077,294.44,228.27,228.06,6.77]
[1757598172276,3.09563976,228.26,228.06,6.77]
[1757598172480,3.09563976,228.25,228.06,6.77]
[1757598172780,3.09563976,228.24,228.06,6.77]
[1757598172972,3.09563976,228.23,228.06,6.77]
[1757598173173,3.09563976,228.22,228.06,6.77]
[1757598173478,13.16,228.26,228.06,6.77]
[1757598173671,3.09740982,228.25,228.06,6.77]
[1757598173877,3.09740982,228.24,228.06,6.77]
[1757598174074,3.09740982,228.23,228.06,6.77]
[1757598174282,3.09740982,228.22,228.06,6.77]
[1757598174587,3.09740982,228.21,228.06,6.77]
[1757598174880,5.16511387,228.25,228.06,6.77]
[1757598175082,3.0983275,228.24,228.06,6.77]
[1757598175277,3.0983275,228.23,228.06,6.77]
[1757598175475,3.0983275,228.22,228.06,6.77]
[1757598175676,5.16511387,228.25,228.06,6.77]
[1757598175878,3.09842892,228.24,228.06,6.77]
[1757598176169,5.16511387,228.25,228.06,6.77]
[1757598176170,3.09842892,228.23,228.06,6.77]
[1757598176374,3.09842892,228.22,228.06,6.77]
[1757598176577,5.16511387,228.25,228.06,6.77]
[1757598176777,3.09928647,228.24,228.06,6.77]
[1757598176980,3.09928647,228.23,228.06,6.77]
[1757598177284,3.09928647,228.22,228.06,6.77]
[1757598177475,3.09928647,228.21,228.06,6.77]
[1757598177679,5.16511387,228.25,228.06,6.77]
[1757598177979,3.09998849,228.24,228.06,6.77]
[1757598178168,5.16511387,228.25,228.06,6.77]
[1757598178169,3.09998849,228.23,228.06,6.77]
[1757598178373,3.09998849,228.22,228.06,6.77]
[1757598178574,5.16511387,228.25,228.06,6.77]
[1757598178984,294.44,228.27,228.06,6.77]
[1757598179277,3.09982754,228.26,228.06,6.77]
[1757598179483,3.10079595,228.25,228.06,6.77]
[1757598179683,3.10079595,228.24,228.06,6.77]
[1757598179885,3.10079595,228.23,228.06,6.77]
[1757598180082,294.44,228.27,228.06,6.77]
[1757598180280,3.10126764,228.26,228.06,6.77]
[1757598180486,3.10126764,228.25,228.06,6.77]
[1757598180685,128.14,228.31,228.07,7.34]
[1757598180883,3.10146443,228.3,228.07,7.34]
[1757598181082,3.10146443,228.29,228.07,7.34]
[1757598181287,3.10146443,228.28,228.07,7.34]
[1757598181482,3.10146443,228.27,228.07,7.34]
[1757598181677,62.18,228.33,228.07,7.34]
[1757598181880,3.10304019,228.32,228.07,7.34]
[1757598182187,3.10304019,228.31,228.07,7.34]
[1757598182382,5.16511387,228.35,228.07,7.34]
[1757598182683,3.10368957,228.34,228.12,7.34]
[1757598182879,5.16511387,228.41,228.14,7.34]
[1757598183079,5.16511387,228.36,228.16,7.34]
[1757598183279,3.10363297,228.35,228.16,7.34]
[1757598183476,5.16511387,228.31,228.1,62.0]
[1757598183680,5.16511387,228.31,228.1,7.34]
[1757598183681,5.16511387,228.26,228.1,7.34]
[1757598183881,3.10363297,228.25,228.1,7.34]
[1757598184482,5.16511387,228.31,228.1,7.34]
[1757598184682,3.10729629,228.3,228.1,7.34]
[1757598184878,3.10729629,228.29,228.1,7.34]
[1757598185080,18.32511387,228.31,228.1,7.34]
[1757598185081,5.16511387,228.26,228.1,7.34]
[1757598185283,3.10729629,228.25,228.04,7.34]
[1757598186289,29.40729629,228.25,228.04,7.34]
[1757598186589,5.16511387,228.21,227.99,7.34]
[1757598186891,13.16,228.19,227.99,7.34]
[1757598187083,3.10729629,228.18,227.99,7.34]
[1757598187283,5.16511387,228.16,227.94,14.9]
[1757598187586,5.16511387,228.11,227.94,14.9]
[1757598187786,3.10729629,228.1,227.94,7.34]
[1757598187981,3.10729629,228.09,227.94,7.34]
[1757598188484,13.16,228.16,227.94,7.34]
[1757598188485,164.06125076,228.18,227.94,7.34]
[1757598188685,3.11675417,228.17,227.95,5.16511387]
[1757598188884,3.11675417,228.16,227.96,7.34]
[1757598189085,3.11675417,228.15,227.96,47.24]
[1757598189281,3.11675417,228.14,227.97,7.34]
[1757598189495,3.11675417,228.13,227.97,7.34]
[1757598189683,4.90763007,228.21,227.97,7.34]
[1757598189880,5.16511387,228.17,227.98,62.0]
[1757598190082,3.11635983,228.16,227.99,7.34]
[1757598190283,3.11635983,228.15,227.99,7.34]
[1757598190483,3.11635983,228.14,227.99,7.34]
[1757598190689,3.11635983,228.13,227.99,7.34]
[1757598190993,3.11635983,228.12,227.99,7.34]
[1757598191182,3.11635983,228.11,227.99,7.34]
[1757598191382,3.11635983,228.1,227.99,7.34]
[1757598191589,4.90763007,228.19,227.99,7.34]
[1757598191792,3.12481515,228.18,227.99,7.34]
[1757598191979,3.12481515,228.17,227.99,7.34]
[1757598192180,3.12481515,228.16,227.99,7.34]
[1757598192380,3.12481515,228.15,227.99,7.34]
[1757598192585,3.12481515,228.14,227.99,7.34]
[1757598192793,4.90763007,228.22,227.99,7.34]
[1757598192982,4.90763007,228.22,227.96,105.22511387]
[1757598192983,3.12774296,228.21,228.02,7.34]
[1757598193189,3.12774296,228.2,228.02,7.34]
[1757598193392,3.12774296,228.19,228.07,62.0]
[1757598193688,4.90763007,228.29,228.09,7.34]
[1757598193898,7.99040653,228.28,228.09,7.34]
[1757598194090,4.90763007,228.26,228.09,7.34]
[1757598194389,4.90763007,228.23,228.09,7.34]
[1757598194693,4.90763007,228.23,228.04,125.04]
[1757598194694,3.08277646,228.22,228.04,7.34]
[1757598194887,3.08277646,228.21,228.04,7.34]
[1757598195094,3.08277646,228.2,228.04,7.34]
[1757598195294,3.08277646,228.19,228.04,7.34]
[1757598195493,3.08277646,228.18,228.04,7.34]
[1757598195688,3.08277646,228.17,228.04,7.34]
[1757598195889,3.08277646,228.16,228.04,7.34]
[1757598196090,3.08277646,228.15,228.04,7.34]
[1757598196391,3.08277646,228.14,228.04,7.34]
[1757598196594,15.95082214,228.28,228.04,7.34]
[1757598196791,20.85845221,228.28,228.04,7.34]
[1757598196993,4.90763007,228.27,228.09,7.34]
[1757598197593,20.85845221,228.28,228.09,7.34]
[1757598197791,5.16511387,228.24,228.09,7.34]
[1757598197994,4.90763007,228.21,228.04,7.34]
[1757598198197,7.99763007,228.18,228.04,7.34]
[1757598199787,3.09,228.13,227.92,7.34]
[1757598200088,4.90763007,228.14,227.92,7.34]
[1757598200089,3.09,228.12,227.92,7.34]
[1757598200598,4.90763007,228.13,227.92,7.34]
[1757598200797,3.09,228.1,227.92,7.34]
[1757598201002,3.09,228.1,227.94,7.34]
[1757598204395,3.09,228.1,227.95,62.0]
[1757598205201,3.09,228.08,227.83,7.34]
[1757598205402,23.23274394,228.09,227.83,7.34]
[1757598205700,5.16511387,228.04,227.83,7.34]
[1757598205900,3.09,228.02,227.83,7.34]
[1757598206806,40.6,228.03,227.83,7.34]
[1757598207300,3.11,228.02,227.83,7.34]
[1757598207598,40.6,228.03,227.83,7.34]
[1757598207599,29.64,228.03,227.83,7.34]
[1757598208002,3.11,228.02,227.83,7.34]
[1757598208199,3.11,228.02,227.84,62.0]
[1757598208394,3.11,228.02,227.85,7.37]
[1757598210510,3.01266982,228.01,227.85,7.37]
[1757598210704,15.96159463,228.02,227.85,7.37]
[1757598210905,3.11,228.02,227.85,7.37]
[1757598211198,3.11,227.98,227.85,7.37]
[1757598212107,3.11,227.98,227.8,7.37]
[1757598212803,13.10511193,228.02,227.8,7.37]
[1757598213010,3.11,228.03,227.8,7.37]
[1757598213507,3.11,228.03,227.82,7.37]
[1757598213704,16.17278173,228.03,227.82,7.37]
[1757598213910,3.11,228.03,227.82,7.37]
[1757598214306,5.16511387,228.04,227.84,7.37]
[1757598214501,5.16511387,227.99,227.84,7.37]
[1757598215002,3.11,227.98,227.84,7.37]
[1757598215208,3.11,227.98,227.71,294.74]
[1757598215209,3.11,227.97,227.75,7.37]
[1757598215406,3.11,227.97,227.77,7.37]
[1757598216603,3.11,227.93,227.77,7.37]
[1757598216799,3.11,227.93,227.78,62.0]
[1757598217207,3.11,227.93,227.77,7.37]
[1757598220316,3.11,227.93,227.79,7.37]
[1757598221416,3.11,227.98,227.79,7.37]
[1757598222718,3.11,227.98,227.81,7.37]
[1757598223714,3.11,227.98,227.82,62.0]
[1757598223914,3.11,227.98,227.83,7.37]
[1757598224216,3.11,228.04,227.83,7.37]
[1757598224416,5.16511387,228.09,227.83,7.37]
[1757598224619,5.16511387,228.09,227.85,7.37]
[1757598224811,18.57421631,228.09,227.85,7.37]
[1757598225617,3.11,228.1,227.87,7.37]
[1757598225915,3.11,228.1,227.88,7.37]
[1757598226118,3.11,228.1,227.9,7.37]
[1757598226614,5.16511387,228.17,227.92,7.37]
[1757598226917,3.11,228.16,227.92,7.37]
[1757598227316,3.11,228.16,227.94,7.37]
[1757598227512,3.11,228.16,227.96,7.37]
[1757598227713,3.11,228.16,227.96,58.01]
[1757598227911,3.11,228.16,227.96,7.37]
[1757598228111,3.11,228.14,227.96,7.37]
[1757598228313,3.11,228.12,227.96,7.37]
[1757598229016,3.11,228.17,227.96,7.37]
[1757598229209,3.00358662,228.16,227.96,7.37]
[1757598229415,3.11,228.17,227.97,30.56]
[1757598229616,3.0047181,228.16,227.97,30.56]
[1757598229809,3.11,228.17,227.96,7.37]
[1757598230010,3.00471786,228.16,227.97,4.78]
[1757598230210,3.11,228.17,227.98,7.37]
[1757598230420,3.02867001,228.16,227.98,7.37]
[1757598230621,3.11,228.17,227.98,7.37]
[1757598230823,3.1,228.15,227.99,62.0]
[1757598231212,321.039452,228.18,227.99,62.0]
[1757598231415,3.1,228.13,227.93,7.37]
[1757598231617,3.0297504,228.12,227.93,7.37]
[1757598232422,3.1,228.13,227.93,7.37]
[1757598233426,3.1,228.13,227.95,7.37]
[1757598233815,3.1,228.13,227.95,131.57]
[1757598234124,3.1,228.13,227.88,7.37]
[1757598234326,3.1,228.11,227.9,7.37]
[1757598234626,3.1,228.11,227.92,7.37]
[1757598235820,3.03072437,228.1,227.92,7.37]
[1757598236015,21.7112632,228.16,227.92,7.37]
[1757598236016,6.13072437,228.09,227.92,7.37]
[1757598236220,3.1,228.09,227.92,7.37]
[1757598236825,3.1,228.15,227.92,7.37]
[1757598237024,3.1,228.13,227.92,7.37]
[1757598237225,3.1,228.11,227.92,7.37]
[1757598237427,3.03073927,228.1,227.92,7.37]
[1757598237629,3.1,228.09,227.92,7.37]
[1757598237824,3.1,228.09,227.93,62.0]
[1757598239625,3.03553835,228.08,227.93,62.0]
[1757598239829,3.1,228.09,227.93,62.0]
[1757598240125,3.03558309,228.08,227.92,7.37]
[1757598240328,3.1,228.09,227.92,7.37]
[1757598240627,3.03638393,228.08,227.92,7.37]
[1757598240829,3.1,228.06,227.92,7.37]
[1757598241028,3.03689939,228.05,227.87,294.82]
[1757598241228,6.13689939,228.04,227.88,7.02]
[1757598241428,3.03689939,228.03,227.88,7.02]
[1757598241833,3.1,228.09,227.88,7.02]
[1757598242031,3.03786053,228.08,227.88,7.02]
[1757598242228,3.03786053,228.07,227.88,7.02]
[1757598242531,3.03786053,228.06,227.9,7.02]
[1757598243232,3.03786053,228.06,227.91,62.0]
[1757598243534,3.03786053,228.06,227.92,7.02]
[1757598244727,3.1,228.05,227.92,7.02]
[1757598245030,3.03786053,228.04,227.92,7.02]
[1757598246528,16.19786053,228.04,227.87,301.84]
[1757598246722,3.1,228.0,227.74,7.02]
[1757598246921,13.16,228.01,227.73,13.37422259]
[1757598246922,3.1,227.98,227.76,7.02]
[1757598247125,3.03786053,227.97,227.76,7.02]
[1757598247836,3.03786053,227.97,227.78,7.02]
[1757598248839,3.03786053,227.97,227.8,7.02]
[1757598249226,8.5512632,228.04,227.8,7.02]
[1757598249429,6.14392798,228.03,227.8,7.02]
[1757598249633,13.16,228.07,227.8,7.02]
[1757598249634,3.1,228.01,227.8,7.02]
[1757598249931,3.04392798,228.0,227.8,7.02]
[1757598250128,3.04392798,227.99,227.81,124.14]
[1757598250335,3.1,228.01,227.82,7.02]
[1757598250529,3.04381381,228.0,227.82,7.02]
[1757598250726,3.04381381,227.99,227.82,7.02]
[1757598251034,3.1,228.01,227.82,7.02]
[1757598251236,3.04381417,228.0,227.82,7.02]
[1757598251434,3.04381417,228.0,227.81,124.14]
[1757598251435,3.04381417,227.99,227.84,7.02]
[1757598251734,3.1,228.01,227.84,7.02]
[1757598251936,3.1,227.99,227.84,7.02]
[1757598252136,34.5035849,228.08,227.84,7.02]
[1757598252137,3.1,227.97,227.84,7.02]
[1757598252429,3.04394846,227.96,227.84,7.02]
[1757598254334,3.1,227.97,227.84,7.02]
[1757598254733,3.04367685,227.96,227.84,7.02]
[1757598254934,3.1,227.97,227.84,7.02]
[1757598255226,3.1,227.95,227.84,7.02]
[1757598256227,3.1,227.93,227.74,7.02]
[1757598256436,6.14309794,227.92,227.74,7.02]
[1757598256637,3.1,227.92,227.74,7.02]
[1757598257134,3.1,227.92,227.73,13.06229598]
[1757598257135,3.1,227.92,227.88,8.0711]
[1757598257335,8.5512632,227.98,227.88,8.0711]
[1757598257530,3.1,227.96,227.88,8.0711]
[1757598257740,3.04265633,227.95,227.88,8.0711]
[1757598257936,6.14265633,227.94,227.88,8.0711]
[1757598258132,3.1,227.92,227.88,8.0711]
[1757598258339,3.1,227.96,227.88,8.0711]
[1757598258539,3.1,227.94,227.88,8.0711]
[1757598258736,3.04202104,227.93,227.88,8.0711]
[1757598258937,3.1,227.96,227.88,8.0711]
[1757598259138,8.5512632,227.98,227.88,4.9711]
[1757598259139,16.20202124,227.95,227.88,4.9711]
[1757598259436,3.04202124,227.94,227.88,4.9711]
[1757598259633,3.04202124,227.93,227.88,4.9711]
[1757598259837,3.04202124,227.92,227.88,4.9711]
[1757598260038,3.04202124,227.91,227.88,4.9711]
[1757598260238,0.44,227.94,227.88,4.9711]
[1757598260439,3.05574382,227.93,227.88,4.9711]
[1757598260739,3.05574382,227.92,227.88,4.9711]
[1757598261039,150.65760266,227.95,227.88,4.9711]
[1757598261040,26.55760266,227.95,227.88,4.9711]
[1757598261236,3.05566988,227.94,227.88,4.9711]
[1757598261437,3.05566988,227.93,227.88,4.9711]
[1757598261643,24.76693308,227.92,227.77,7.02]
[1757598261845,3.05566988,227.91,227.77,7.02]
[1757598262140,3.05566988,227.9,227.77,7.02]
[1757598262342,3.05566988,227.89,227.77,7.02]
[1757598262541,3.05566988,227.88,227.77,7.02]
[1757598262844,3.05566988,227.87,227.77,7.02]
[1757598263137,84.2112632,227.92,227.77,7.02]
[1757598263333,3.05421761,227.91,227.77,7.02]
[1757598263536,3.05421761,227.9,227.77,7.02]
[1757598263737,150.65760266,227.95,227.77,7.02]
[1757598263938,3.0538282,227.94,227.77,7.02]
[1757598264142,3.0538282,227.93,227.77,7.02]
[1757598264345,3.0538282,227.92,227.77,7.02]
[1757598264542,3.0538282,227.91,227.77,7.02]
[1757598264744,3.0538282,227.9,227.77,7.02]
[1757598264945,150.14188181,227.95,227.77,7.02]
[1757598265133,16.21344133,227.94,227.77,7.02]
[1757598265337,3.05344133,227.93,227.77,7.02]
[1757598265543,3.05344133,227.92,227.77,7.02]
[1757598265746,3.05344133,227.91,227.77,7.02]
[1757598265944,3.05344133,227.9,227.77,7.02]
[1757598266143,124.08,227.93,227.77,7.02]
[1757598266350,3.05206379,227.92,227.77,7.02]
[1757598266546,3.05206379,227.91,227.77,7.02]
[1757598266746,3.05206379,227.9,227.77,7.02]
[1757598266948,124.08,227.93,227.77,7.02]
[1757598267150,3.05215445,227.92,227.77,7.02]
[1757598267349,3.05215445,227.91,227.77,7.02]
[1757598267650,3.05215445,227.9,227.77,7.02]
[1757598267846,124.08,227.93,227.77,7.02]
[1757598268047,3.05116477,227.92,227.77,7.02]
[1757598268247,3.05116477,227.91,227.77,7.02]
[1757598268447,3.05116477,227.9,227.77,7.02]
[1757598268650,3.05060125,227.89,227.77,7.02]
[1757598268848,3.05060125,227.88,227.77,7.02]
[1757598269050,13.16,227.91,227.77,7.02]
[1757598269247,3.05067513,227.9,227.77,7.02]
[1757598269443,13.16,227.91,227.77,7.02]
[1757598269650,3.04926449,227.9,227.77,7.02]
[1757598269850,137.22,227.91,227.77,7.02]
[1757598270051,3.04926489,227.9,227.77,7.02]
[1757598270351,3.04926489,227.89,227.77,7.02]
[1757598270649,3.04926489,227.88,227.77,7.02]
[1757598270849,137.22,227.91,227.77,7.02]
[1757598271050,3.04911537,227.9,227.77,7.02]
[1757598271351,3.04911537,227.89,227.77,7.02]
[1757598271545,3.04911537,227.88,227.77,7.02]
[1757598271851,137.22,227.91,227.77,7.02]
[1757598272051,3.04865449,227.9,227.77,7.02]
[1757598272254,3.04865449,227.89,227.77,7.02]
[1757598272452,8.5512632,227.85,227.71,6.87]
[1757598272650,3.04865449,227.84,227.71,6.87]
[1757598273549,16.20865449,227.84,227.71,6.87]
[1757598273750,3.04865449,227.83,227.71,6.87]
[1757598275354,16.20865449,227.83,227.64,6.87]
[1757598275556,3.04865449,227.82,227.64,6.87]
[1757598275757,3.04865449,227.81,227.64,6.87]
[1757598275957,3.04865449,227.8,227.64,6.87]
[1757598276156,124.02,227.84,227.64,6.87]
[1757598276453,3.4017265,227.82,227.64,6.87]
[1757598276659,3.05001022,227.81,227.64,6.87]
[1757598276858,3.05001022,227.8,227.64,6.87]
[1757598277058,3.05001022,227.79,227.64,6.87]
[1757598277358,3.05001022,227.78,227.64,6.87]
[1757598277555,3.4017265,227.82,227.64,6.87]
[1757598277758,3.04845786,227.81,227.64,6.87]
[1757598277960,3.04845786,227.8,227.64,6.87]
[1757598278156,3.04845786,227.79,227.64,6.87]
[1757598278351,6.45018436,227.78,227.64,6.87]
[1757598278655,3.04845786,227.77,227.64,6.87]
[1757598279763,3.4017265,227.73,227.64,6.87]
[1757598279959,3.04845786,227.72,227.64,6.87]
[1757598280261,3.04845786,227.72,227.56,6.87]
[1757598280459,3.04845786,227.71,227.56,6.87]
[1757598280658,3.04845786,227.7,227.56,6.87]
[1757598280966,3.04845786,227.69,227.56,6.87]
[1757598281263,13.47889393,227.71,227.56,6.87]
[1757598281459,3.4017265,227.76,227.55,0.76444874]
[1757598281768,3.4017265,227.7,227.54,6.87]
[1757598281961,3.04775467,227.69,227.54,6.87]
[1757598283561,3.04775467,227.68,227.54,6.87]
[1757598283762,3.04775467,227.67,227.54,6.87]
[1757598283964,16.79428196,227.71,227.54,6.87]
[1757598284159,3.04650852,227.7,227.54,6.87]
[1757598284364,3.04650852,227.69,227.54,6.87]
[1757598284564,3.04650852,227.68,227.54,6.87]
[1757598284760,3.04650852,227.67,227.54,6.87]
[1757598284966,40.64,227.7,227.54,6.87]
[1757598285167,3.04552204,227.69,227.54,6.87]
[1757598285362,3.04552204,227.68,227.54,6.87]
[1757598285559,3.04552204,227.67,227.54,6.87]
[1757598285767,3.04552204,227.66,227.54,6.87]
[1757598285965,3.04552204,227.65,227.54,6.87]
[1757598286262,3.4017265,227.67,227.54,6.87]
[1757598286464,3.04304947,227.66,227.54,6.87]
[1757598286663,3.04304947,227.65,227.54,6.87]
[1757598286861,3.4017265,227.69,227.54,6.87]
[1757598287056,3.04304922,227.68,227.54,6.87]
[1757598287255,3.04304922,227.67,227.54,6.87]
[1757598287460,3.04304922,227.66,227.54,6.87]
[1757598287662,3.04304922,227.65,227.54,6.87]
[1757598287859,3.4017265,227.69,227.54,6.87]
[1757598288057,3.04235128,227.68,227.54,6.87]
[1757598288259,3.04235128,227.67,227.54,6.87]
[1757598288465,3.4017265,227.65,227.49,6.87]
[1757598288668,3.4017265,227.61,227.49,6.87]
[1757598290761,3.04199814,227.6,227.49,6.87]
[1757598290968,3.4017265,227.57,227.44,6.87]
[1757598291168,3.04255757,227.56,227.44,6.87]
[1757598291463,137.06,227.6,227.44,6.87]
[1757598291464,3.04137512,227.55,227.44,6.87]
[1757598291668,123.9,227.6,227.44,6.87]
[1757598291871,3.04109481,227.59,227.44,6.87]
[1757598292064,3.4017265,227.55,227.44,6.87]
[1757598292269,3.04155545,227.54,227.44,6.87]
[1757598292469,3.4017265,227.55,227.44,6.87]
[1757598292669,3.03924884,227.54,227.44,6.87]
[1757598292966,3.4017265,227.51,227.36,6.87]
[1757598293164,56.12,227.54,227.36,6.87]
[1757598293364,3.03727983,227.53,227.36,6.87]
[1757598293569,56.12,227.54,227.36,6.87]
[1757598293766,3.03729931,227.53,227.36,6.87]
[1757598293965,56.12,227.54,227.36,6.87]
[1757598294162,3.03738947,227.53,227.36,6.87]
[1757598294467,56.12,227.54,227.36,6.87]
[1757598294974,3.4017265,227.61,227.38,6.87]
[1757598295269,3.4017265,227.61,227.37,3.4017265]
[1757598295270,3.03491501,227.6,227.4,6.87]
[1757598295470,3.4017265,227.61,227.4,6.87]
[1757598295669,172.42852714,227.65,227.42,6.87]
[1757598295869,3.03420127,227.64,227.42,6.87]
[1757598296071,3.03420127,227.63,227.42,8.86]
[1757598296266,172.42852714,227.65,227.46,6.87]